[Event "*** Titled Tuesday 3|2 Blitz"]
[Site "Chess.com"]
[Date "2017.03.07"]
[Round "1"]
[White "PelinGorki"]
[Black "HouseOfDurin"]
[Result "1-0"]
[WhiteElo "2415"]
[BlackElo "1868"]
[TimeControl "180+2"]
[EndTime "13:07:50 PST"]
[Termination "PelinGorki won by resignation"]

1. e4 {[%clk 0:02:38.6]} 1... c5 {[%clk 0:03:00.9]} 2. Nf3 {[%clk 0:02:39.5]}
2... Nc6 {[%clk 0:03:01.4]} 3. d4 {[%clk 0:02:40.3]} 3... cxd4 {[%clk
0:03:03.3]} 4. Nxd4 {[%clk 0:02:41.2]} 4... e5 {[%clk 0:03:04.9]} 5. Nb5 {[%clk
0:02:41.9]} 5... d6 {[%clk 0:03:05.9]} 6. c4 {[%clk 0:02:42.5]} 6... Be6 {[%clk
0:03:05.5]} 7. Be3 {[%clk 0:02:41.2]} 7... f5 {[%clk 0:03:00.9]} 8. exf5 {[%clk
0:02:25.5]} 8... Bxf5 {[%clk 0:03:02.8]} 9. N1c3 {[%clk 0:02:26.7]} 9... Nf6
{[%clk 0:03:02.5]} 10. Be2 {[%clk 0:02:21.3]} 10... a6 {[%clk 0:02:32.3]} 11.
Na3 {[%clk 0:02:21]} 11... Be7 {[%clk 0:02:26.1]} 12. O-O {[%clk 0:02:22.5]}
12... O-O {[%clk 0:02:26.7]} 13. Nc2 {[%clk 0:02:22.4]} 13... Rc8 {[%clk
0:01:44.6]} 14. Rc1 {[%clk 0:02:22]} 14... Be6 {[%clk 0:01:15.7]} 15. b3 {[%clk
0:02:17.4]} 15... d5 {[%clk 0:01:07.9]} 16. cxd5 {[%clk 0:02:16.6]} 16... Nxd5
{[%clk 0:01:09.8]} 17. Bc4 {[%clk 0:02:16.1]} 17... Nc7 {[%clk 0:00:18.6]} 18.
Bb6 {[%clk 0:02:10.9]} 18... Bxc4 {[%clk 0:00:18.4]} 19. bxc4 {[%clk 0:02:12.8]}
19... Qxd1 {[%clk 0:00:18.7]} 20. Rfxd1 {[%clk 0:02:13]} 20... Ne6 {[%clk
0:00:17.6]} 21. Rd5 {[%clk 0:02:03.1]} 21... Ncd4 {[%clk 0:00:16.9]} 22. Nxd4
{[%clk 0:01:59.5]} 22... Nxd4 {[%clk 0:00:18.8]} 23. Rxe5 {[%clk 0:01:57.8]}
23... Ne6 {[%clk 0:00:20.7]} 24. Rxe6 {[%clk 0:01:58.1]} 24... Rxc4 {[%clk
0:00:19.6]} 25. Rxe7 {[%clk 0:01:57.1]} 25... Rfc8 {[%clk 0:00:20.7]} 26. Re3
{[%clk 0:01:53.5]} 26... R4c6 {[%clk 0:00:20.7]} 27. Ba7 {[%clk 0:01:53.1]}
27... b5 {[%clk 0:00:20.2]} 28. a3 {[%clk 0:01:53.9]} 28... a5 {[%clk
0:00:21.3]} 29. Bd4 {[%clk 0:01:39.6]} 29... b4 {[%clk 0:00:22.3]} 30. axb4
{[%clk 0:01:41.4]} 30... axb4 {[%clk 0:00:23.4]} 31. h4 {[%clk 0:01:40.6]} 31...
bxc3 {[%clk 0:00:24.5]} 32. Rexc3 {[%clk 0:01:42.5]} 32... Rxc3 {[%clk 0:00:25]}
33. Rxc3 {[%clk 0:01:44.4]} 33... Rd8 {[%clk 0:00:25.3]} 34. Be3 {[%clk
0:01:44.4]} 34... Rd7 {[%clk 0:00:26.5]} 35. g4 {[%clk 0:01:44.3]} 35... h6
{[%clk 0:00:27.6]} 36. Kg2 {[%clk 0:01:45.6]} 36... Kh7 {[%clk 0:00:28.3]} 37.
f4 {[%clk 0:01:46.9]} 37... Kg6 {[%clk 0:00:29.1]} 38. Kf3 {[%clk 0:01:48.3]}
38... Kf7 {[%clk 0:00:29.9]} 39. g5 {[%clk 0:01:48.7]} 39... hxg5 {[%clk
0:00:30.7]} 40. hxg5 {[%clk 0:01:50.6]} 40... Kg6 {[%clk 0:00:32.1]} 41. Rc6+
{[%clk 0:01:51.1]} 41... Kf7 {[%clk 0:00:32.9]} 42. f5 {[%clk 0:01:51.2]} 42...
Rb7 {[%clk 0:00:31]} 43. Ke4 {[%clk 0:01:52.1]} 43... Re7+ {[%clk 0:00:26.4]}
44. Kf4 {[%clk 0:01:53.2]} 44... Rb7 {[%clk 0:00:24.7]} 45. Bd4 {[%clk
0:01:53.9]} 45... Rd7 {[%clk 0:00:23.5]} 46. Be5 {[%clk 0:01:50.4]} 46... Kg8
{[%clk 0:00:18.4]} 47. Rc8+ {[%clk 0:01:48.8]} 47... Kh7 {[%clk 0:00:19.1]} 48.
g6+ {[%clk 0:01:50]} 1-0

[Event "*** Titled Tuesday 3|2 Blitz"]
[Site "Chess.com"]
[Date "2017.03.07"]
[Round "1"]
[White "plouarzel"]
[Black "BillieKimbah"]
[Result "1-0"]
[WhiteElo "2356"]
[BlackElo "2608"]
[TimeControl "180+2"]
[EndTime "13:08:01 PST"]
[Termination "plouarzel won by resignation"]

1. d4 {[%clk 0:03:02]} 1... d5 {[%clk 0:02:55.5]} 2. c4 {[%clk 0:03:02.9]} 2...
c6 {[%clk 0:02:44.6]} 3. Nc3 {[%clk 0:03:03.2]} 3... Nf6 {[%clk 0:02:45.3]} 4.
e3 {[%clk 0:03:04.5]} 4... Bf5 {[%clk 0:02:45.5]} 5. cxd5 {[%clk 0:03:02.4]}
5... cxd5 {[%clk 0:02:46.4]} 6. Qb3 {[%clk 0:03:03.6]} 6... Nc6 {[%clk
0:02:47.5]} 7. Qxb7 {[%clk 0:03:04.8]} 7... Bd7 {[%clk 0:02:49.1]} 8. Qb3 {[%clk
0:03:05.7]} 8... Rb8 {[%clk 0:02:50]} 9. Qd1 {[%clk 0:03:07.4]} 9... e5 {[%clk
0:02:49]} 10. dxe5 {[%clk 0:03:09.3]} 10... Nxe5 {[%clk 0:02:49.6]} 11. f4
{[%clk 0:03:11]} 11... Neg4 {[%clk 0:02:23.9]} 12. h3 {[%clk 0:03:01]} 12... Nh6
{[%clk 0:02:24.8]} 13. Nf3 {[%clk 0:03:01.5]} 13... Bb4 {[%clk 0:02:19.4]} 14.
Bd3 {[%clk 0:02:55.4]} 14... O-O {[%clk 0:02:15.1]} 15. O-O {[%clk 0:02:56.4]}
15... Nf5 {[%clk 0:02:08.2]} 16. Bxf5 {[%clk 0:02:51.6]} 16... Bxf5 {[%clk
0:02:08.5]} 17. Nd4 {[%clk 0:02:53.1]} 17... Bxc3 {[%clk 0:02:03.1]} 18. bxc3
{[%clk 0:02:31.1]} 18... Bd7 {[%clk 0:01:59.9]} 19. Qc2 {[%clk 0:02:15.9]} 19...
Re8 {[%clk 0:01:59]} 20. c4 {[%clk 0:01:38.1]} 20... Rc8 {[%clk 0:01:59.7]} 21.
c5 {[%clk 0:01:34.2]} 21... Ne4 {[%clk 0:02:00.1]} 22. Nb3 {[%clk 0:01:27.3]}
22... Bb5 {[%clk 0:01:13.5]} 23. Rd1 {[%clk 0:01:16.7]} 23... Bc4 {[%clk
0:01:13.6]} 24. Bb2 {[%clk 0:01:05.2]} 24... Bxb3 {[%clk 0:00:53.2]} 25. axb3
{[%clk 0:01:07.1]} 25... Rxc5 {[%clk 0:00:53.6]} 26. Qd3 {[%clk 0:01:08.1]}
26... a5 {[%clk 0:00:41.2]} 27. Qd4 {[%clk 0:01:05.3]} 27... f6 {[%clk
0:00:38.4]} 28. Rac1 {[%clk 0:00:53.7]} 28... Rb5 {[%clk 0:00:35.8]} 29. Rd3
{[%clk 0:00:38.6]} 29... Qd7 {[%clk 0:00:33.7]} 30. Rcd1 {[%clk 0:00:39.6]}
30... h6 {[%clk 0:00:32.9]} 31. Qa4 {[%clk 0:00:39.4]} 31... Qb7 {[%clk
0:00:28.8]} 32. Rxd5 {[%clk 0:00:39.3]} 32... Rb8 {[%clk 0:00:20.4]} 33. Rxb5
{[%clk 0:00:36]} 33... Qxb5 {[%clk 0:00:21.5]} 34. Rd8+ {[%clk 0:00:34]} 34...
Kf7 {[%clk 0:00:20.2]} 35. Rxb8 {[%clk 0:00:32.3]} 35... Qxb8 {[%clk 0:00:21]}
36. Qxe4 {[%clk 0:00:32.9]} 1-0

[Event "*** Titled Tuesday 3|2 Blitz"]
[Site "Chess.com"]
[Date "2017.03.07"]
[Round "1"]
[White "quesfr"]
[Black "jk13"]
[Result "0-1"]
[WhiteElo "2168"]
[BlackElo "2497"]
[TimeControl "180+2"]
[EndTime "13:08:03 PST"]
[Termination "jk13 won by resignation"]

1. e4 {[%clk 0:03:02]} 1... e5 {[%clk 0:02:59.6]} 2. Nf3 {[%clk 0:03:03]} 2...
Nc6 {[%clk 0:03:00.4]} 3. Nc3 {[%clk 0:03:04.6]} 3... Nf6 {[%clk 0:03:00.8]} 4.
a3 {[%clk 0:03:06.2]} 4... Bc5 {[%clk 0:02:54.6]} 5. Nxe5 {[%clk 0:03:06.4]}
5... Nxe5 {[%clk 0:02:48.7]} 6. d4 {[%clk 0:03:06.6]} 6... Bd6 {[%clk
0:02:50.3]} 7. f4 {[%clk 0:03:07.6]} 7... Ng6 {[%clk 0:02:43.6]} 8. e5 {[%clk
0:03:06.4]} 8... Qe7 {[%clk 0:02:07]} 9. Be2 {[%clk 0:02:58.3]} 9... O-O {[%clk
0:02:05.2]} 10. O-O {[%clk 0:02:47.8]} 10... c6 {[%clk 0:02:06.2]} 11. f5 {[%clk
0:02:18.9]} 11... Nxe5 {[%clk 0:02:05.2]} 12. dxe5 {[%clk 0:02:11.4]} 12... Bxe5
{[%clk 0:01:58.7]} 13. Bg5 {[%clk 0:02:12]} 13... d5 {[%clk 0:01:59.2]} 14. Bd3
{[%clk 0:02:01.4]} 14... h6 {[%clk 0:01:28.6]} 15. Bh4 {[%clk 0:01:59.9]} 15...
Qc7 {[%clk 0:01:28.4]} 16. h3 {[%clk 0:01:21.9]} 16... Qb6+ {[%clk 0:01:25.7]}
17. Kh1 {[%clk 0:01:20.7]} 17... Qxb2 {[%clk 0:01:27.6]} 18. Ne2 {[%clk
0:01:19.8]} 18... Qxa1 {[%clk 0:01:26.1]} 19. Qxa1 {[%clk 0:01:18.3]} 19... Bxa1
{[%clk 0:01:28]} 20. Rxa1 {[%clk 0:01:18.9]} 20... Ne4 {[%clk 0:01:23.6]} 21.
Rf1 {[%clk 0:01:10.1]} 21... Re8 {[%clk 0:01:20.2]} 22. f6 {[%clk 0:01:04.1]}
22... Nxf6 {[%clk 0:01:07.2]} 23. Bxf6 {[%clk 0:01:04.5]} 23... gxf6 {[%clk
0:01:09.1]} 24. Rxf6 {[%clk 0:01:05.6]} 24... Kg7 {[%clk 0:01:09.4]} 25. Rf3
{[%clk 0:01:04.9]} 25... Re5 {[%clk 0:01:07.6]} 26. Nd4 {[%clk 0:00:59]} 26...
Be6 {[%clk 0:01:08.1]} 27. Bf5 {[%clk 0:00:27.5]} 27... c5 {[%clk 0:01:01]} 28.
Rg3+ {[%clk 0:00:19.5]} 28... Kf6 {[%clk 0:00:44.3]} 29. Bxe6 {[%clk 0:00:20]}
29... fxe6 {[%clk 0:00:44.7]} 30. Rf3+ {[%clk 0:00:21]} 30... Ke7 {[%clk
0:00:45.3]} 31. Nb5 {[%clk 0:00:20.9]} 31... a6 {[%clk 0:00:42.8]} 32. Nc3
{[%clk 0:00:21.2]} 32... d4 {[%clk 0:00:42]} 33. Na4 {[%clk 0:00:22]} 33... b5
{[%clk 0:00:40.5]} 34. Nb2 {[%clk 0:00:21.8]} 34... c4 {[%clk 0:00:40.8]} 35.
Kh2 {[%clk 0:00:20.7]} 35... Re2 {[%clk 0:00:40.8]} 36. Nd1 {[%clk 0:00:20.3]}
36... Rxc2 {[%clk 0:00:40.9]} 37. Nf2 {[%clk 0:00:20.4]} 0-1

[Event "*** Titled Tuesday 3|2 Blitz"]
[Site "Chess.com"]
[Date "2017.03.07"]
[Round "1"]
[White "Jahonas"]
[Black "Ginger_GM"]
[Result "0-1"]
[WhiteElo "2183"]
[BlackElo "2502"]
[TimeControl "180+2"]
[EndTime "13:08:16 PST"]
[Termination "Ginger_GM won by resignation"]

1. d4 {[%clk 0:03:02]} 1... e6 {[%clk 0:03:00]} 2. c4 {[%clk 0:02:57.7]} 2... f5
{[%clk 0:03:00.1]} 3. Nc3 {[%clk 0:02:57.4]} 3... Nf6 {[%clk 0:03:00.1]} 4. Nf3
{[%clk 0:02:53.6]} 4... Be7 {[%clk 0:03:00.4]} 5. Bg5 {[%clk 0:02:50.6]} 5...
Ne4 {[%clk 0:02:58.1]} 6. Bxe7 {[%clk 0:02:49.8]} 6... Qxe7 {[%clk 0:02:58.8]}
7. Qc2 {[%clk 0:02:50.4]} 7... Nxc3 {[%clk 0:02:58]} 8. Qxc3 {[%clk 0:02:50.5]}
8... O-O {[%clk 0:02:58.4]} 9. e3 {[%clk 0:02:50.6]} 9... d6 {[%clk 0:02:58.9]}
10. Be2 {[%clk 0:02:48.7]} 10... a5 {[%clk 0:02:59.5]} 11. O-O {[%clk
0:02:48.9]} 11... Nd7 {[%clk 0:02:57.2]} 12. a3 {[%clk 0:02:48]} 12... a4 {[%clk
0:02:56.3]} 13. b4 {[%clk 0:02:45.3]} 13... axb3 {[%clk 0:02:57]} 14. Qxb3
{[%clk 0:02:45.9]} 14... Kh8 {[%clk 0:02:54.2]} 15. Qb4 {[%clk 0:02:22.6]} 15...
b6 {[%clk 0:02:43.6]} 16. a4 {[%clk 0:02:20]} 16... Ra5 {[%clk 0:02:40.8]} 17.
Nd2 {[%clk 0:02:17.6]} 17... f4 {[%clk 0:02:31.2]} 18. e4 {[%clk 0:02:07.1]}
18... Rg5 {[%clk 0:02:17.7]} 19. a5 {[%clk 0:01:50.5]} 19... bxa5 {[%clk
0:01:48.4]} 20. Rxa5 {[%clk 0:01:49.7]} 20... e5 {[%clk 0:01:45.3]} 21. c5
{[%clk 0:01:43.8]} 21... dxc5 {[%clk 0:01:39.9]} 22. dxc5 {[%clk 0:01:43]} 22...
Nf6 {[%clk 0:01:25.5]} 23. Qc3 {[%clk 0:01:32.8]} 23... c6 {[%clk 0:01:15.8]}
24. Rfa1 {[%clk 0:01:28]} 24... h5 {[%clk 0:01:15.4]} 25. Ra8 {[%clk 0:01:09.6]}
25... Bg4 {[%clk 0:01:07.7]} 26. Rxf8+ {[%clk 0:01:03]} 26... Qxf8 {[%clk
0:01:08.3]} 27. Bf1 {[%clk 0:01:01.5]} 27... f3 {[%clk 0:01:06.8]} 28. g3 {[%clk
0:00:59.2]} 28... h4 {[%clk 0:01:05.6]} 29. Qe3 {[%clk 0:00:47.6]} 29... Rh5
{[%clk 0:01:01.6]} 30. Nc4 {[%clk 0:00:35.5]} 30... hxg3 {[%clk 0:00:59.2]} 31.
fxg3 {[%clk 0:00:35.1]} 31... Kh7 {[%clk 0:00:55.8]} 32. Ra2 {[%clk 0:00:35.1]}
32... Nd7 {[%clk 0:00:49.6]} 33. Nd6 {[%clk 0:00:35.8]} 33... Rh6 {[%clk
0:00:41.9]} 34. Rf2 {[%clk 0:00:36.6]} 34... Nxc5 {[%clk 0:00:39.1]} 35. h3
{[%clk 0:00:35.6]} 35... Qxd6 {[%clk 0:00:37.4]} 36. hxg4 {[%clk 0:00:36.5]}
36... Qd4 {[%clk 0:00:35.4]} 37. Qxf3 {[%clk 0:00:37]} 37... Rf6 {[%clk
0:00:32.1]} 38. Qh1+ {[%clk 0:00:30.2]} 38... Kg8 {[%clk 0:00:31.5]} 0-1

[Event "*** Titled Tuesday 3|2 Blitz"]
[Site "Chess.com"]
[Date "2017.03.07"]
[Round "1"]
[White "CM_Perligero"]
[Black "underdogchss"]
[Result "1-0"]
[WhiteElo "2112"]
[BlackElo "2444"]
[TimeControl "180+2"]
[EndTime "13:08:26 PST"]
[Termination "CM_Perligero won by resignation"]

1. e4 {[%clk 0:03:02]} 1... d6 {[%clk 0:03:00.1]} 2. d4 {[%clk 0:03:01.9]} 2...
Nf6 {[%clk 0:03:01]} 3. Nc3 {[%clk 0:03:00.9]} 3... g6 {[%clk 0:03:02.1]} 4. Be3
{[%clk 0:02:57.6]} 4... c6 {[%clk 0:03:02.5]} 5. f3 {[%clk 0:02:58.5]} 5... Nbd7
{[%clk 0:03:03]} 6. Bc4 {[%clk 0:02:57]} 6... d5 {[%clk 0:02:55.9]} 7. exd5
{[%clk 0:02:54.6]} 7... Nb6 {[%clk 0:02:34.5]} 8. Bb3 {[%clk 0:02:34.5]} 8...
Nbxd5 {[%clk 0:02:35.3]} 9. Nxd5 {[%clk 0:02:33.7]} 9... Nxd5 {[%clk 0:02:32.7]}
10. Bd2 {[%clk 0:02:33.7]} 10... Bg7 {[%clk 0:02:11]} 11. c3 {[%clk 0:02:33.4]}
11... O-O {[%clk 0:02:10.9]} 12. Ne2 {[%clk 0:02:31.6]} 12... e5 {[%clk
0:01:55.9]} 13. Bxd5 {[%clk 0:02:05.1]} 13... Qxd5 {[%clk 0:01:53.7]} 14. dxe5
{[%clk 0:01:59]} 14... Qxe5 {[%clk 0:01:34.9]} 15. O-O {[%clk 0:01:54.3]} 15...
Rd8 {[%clk 0:01:32]} 16. Nd4 {[%clk 0:01:39.9]} 16... c5 {[%clk 0:01:17.7]} 17.
Re1 {[%clk 0:01:39]} 17... Qd5 {[%clk 0:01:07.9]} 18. Nb3 {[%clk 0:01:25.3]}
18... Bf5 {[%clk 0:00:56.1]} 19. Be3 {[%clk 0:01:06.5]} 19... b6 {[%clk
0:00:55.9]} 20. Qe2 {[%clk 0:01:00.9]} 20... Qd3 {[%clk 0:00:55.4]} 21. Qf2
{[%clk 0:01:00.8]} 21... Qc4 {[%clk 0:00:53.9]} 22. Nd2 {[%clk 0:00:59.3]} 22...
Qd5 {[%clk 0:00:53.9]} 23. g4 {[%clk 0:00:56.6]} 23... Bd7 {[%clk 0:00:52.5]}
24. Ne4 {[%clk 0:00:56]} 24... Bc6 {[%clk 0:00:52.1]} 25. Bg5 {[%clk 0:00:56]}
25... Re8 {[%clk 0:00:50.1]} 26. Bf6 {[%clk 0:00:54.1]} 26... Bb7 {[%clk
0:00:31.7]} 27. Qh4 {[%clk 0:00:50.9]} 27... Bf8 {[%clk 0:00:32.1]} 28. Rad1
{[%clk 0:00:43.5]} 28... Qxa2 {[%clk 0:00:25.1]} 29. Ng5 {[%clk 0:00:42.1]}
29... h6 {[%clk 0:00:24.9]} 30. Nxf7 {[%clk 0:00:36.3]} 30... Kxf7 {[%clk
0:00:24]} 31. Rd7+ {[%clk 0:00:36.6]} 31... Kg8 {[%clk 0:00:22.3]} 32. Be5
{[%clk 0:00:30.3]} 32... Qe6 {[%clk 0:00:19.2]} 33. Rxb7 {[%clk 0:00:29.4]}
33... Bg7 {[%clk 0:00:19]} 34. Rxg7+ {[%clk 0:00:29]} 34... Kf8 {[%clk
0:00:20.2]} 35. Qxh6 {[%clk 0:00:29.1]} 1-0

[Event "*** Titled Tuesday 3|2 Blitz"]
[Site "Chess.com"]
[Date "2017.03.07"]
[Round "1"]
[White "Schoenbrunn"]
[Black "Hunninn"]
[Result "0-1"]
[WhiteElo "1853"]
[BlackElo "2414"]
[TimeControl "180+2"]
[EndTime "13:08:36 PST"]
[Termination "Hunninn won on time"]

1. e4 {[%clk 0:03:01.3]} 1... e5 {[%clk 0:03:00.5]} 2. Nf3 {[%clk 0:03:00.1]}
2... Nc6 {[%clk 0:03:01.3]} 3. d4 {[%clk 0:02:59.6]} 3... exd4 {[%clk
0:03:00.5]} 4. Nxd4 {[%clk 0:02:59.7]} 4... Nf6 {[%clk 0:03:01.9]} 5. Nxc6
{[%clk 0:02:53.4]} 5... bxc6 {[%clk 0:03:02.8]} 6. e5 {[%clk 0:02:48.8]} 6...
Qe7 {[%clk 0:03:03.1]} 7. Qe2 {[%clk 0:02:49]} 7... Nd5 {[%clk 0:03:04.6]} 8. c4
{[%clk 0:02:36.8]} 8... Nb6 {[%clk 0:03:05.6]} 9. Nc3 {[%clk 0:02:26.8]} 9... g6
{[%clk 0:03:06.6]} 10. Ne4 {[%clk 0:02:24.2]} 10... Bg7 {[%clk 0:03:06.8]} 11.
Bg5 {[%clk 0:02:15]} 11... Qxe5 {[%clk 0:03:02.4]} 12. Nf6+ {[%clk 0:02:05.4]}
12... Bxf6 {[%clk 0:03:01.8]} 13. Bxf6 {[%clk 0:02:06.1]} 13... Qxe2+ {[%clk
0:03:01.3]} 14. Bxe2 {[%clk 0:02:06.3]} 14... O-O {[%clk 0:03:02.8]} 15. O-O-O
{[%clk 0:01:52.3]} 15... d6 {[%clk 0:03:02.5]} 16. Bf3 {[%clk 0:01:42.5]} 16...
Bd7 {[%clk 0:03:01.1]} 17. c5 {[%clk 0:01:35.9]} 17... Nc8 {[%clk 0:02:52.1]}
18. Rhe1 {[%clk 0:01:30.7]} 18... Rb8 {[%clk 0:02:13]} 19. b3 {[%clk 0:01:27.1]}
19... d5 {[%clk 0:02:11.3]} 20. Kb2 {[%clk 0:01:19.3]} 20... Be6 {[%clk
0:02:09.2]} 21. Be5 {[%clk 0:01:16.1]} 21... Rb7 {[%clk 0:02:09.6]} 22. Bf6
{[%clk 0:01:00.7]} 22... a5 {[%clk 0:02:10.1]} 23. a3 {[%clk 0:00:58.3]} 23...
Na7 {[%clk 0:02:09.7]} 24. a4 {[%clk 0:00:57]} 24... Rfb8 {[%clk 0:02:09.4]} 25.
Rd3 {[%clk 0:00:49.7]} 25... d4 {[%clk 0:02:10.1]} 26. Bd1 {[%clk 0:00:43]}
26... Bc4 {[%clk 0:02:07.9]} 27. Rf3 {[%clk 0:00:32.7]} 27... Bd5 {[%clk
0:02:04.7]} 28. Rg3 {[%clk 0:00:31.8]} 28... h6 {[%clk 0:01:58.7]} 29. Bxd4
{[%clk 0:00:31.3]} 29... g5 {[%clk 0:01:55.9]} 30. Rge3 {[%clk 0:00:30.8]} 30...
f5 {[%clk 0:01:53.5]} 31. f3 {[%clk 0:00:28.1]} 31... Kf8 {[%clk 0:01:51.5]} 32.
Rc3 {[%clk 0:00:25.9]} 32... Nc8 {[%clk 0:01:51.3]} 33. Re5 {[%clk 0:00:24.2]}
33... Ne7 {[%clk 0:01:51.8]} 34. Rce3 {[%clk 0:00:21.4]} 34... f4 {[%clk
0:01:52.5]} 35. Rc3 {[%clk 0:00:20.5]} 35... Ng6 {[%clk 0:01:53.6]} 36. Re1
{[%clk 0:00:19.7]} 36... Kf7 {[%clk 0:01:52.3]} 37. Bc2 {[%clk 0:00:20]} 37...
Nh4 {[%clk 0:01:51]} 38. Re2 {[%clk 0:00:19.8]} 38... g4 {[%clk 0:01:51.3]} 39.
fxg4 {[%clk 0:00:19.5]} 39... Nxg2 {[%clk 0:01:51.9]} 40. Rf2 {[%clk 0:00:17.8]}
40... f3 {[%clk 0:01:50.1]} 41. Bd1 {[%clk 0:00:17.3]} 41... Nh4 {[%clk
0:01:50.1]} 42. Be3 {[%clk 0:00:14.5]} 42... Kg6 {[%clk 0:01:51.2]} 43. Bc1
{[%clk 0:00:13.4]} 43... Rb4 {[%clk 0:01:48.2]} 44. Bc2+ {[%clk 0:00:13.4]}
44... Kg7 {[%clk 0:01:47.6]} 45. Re3 {[%clk 0:00:14.4]} 45... Rxg4 {[%clk
0:01:47.7]} 46. Re7+ {[%clk 0:00:14.3]} 46... Kf6 {[%clk 0:01:47.8]} 47. Rxc7
{[%clk 0:00:14.3]} 47... Rg2 {[%clk 0:01:48.8]} 48. Be3 {[%clk 0:00:13.2]} 48...
Nf5 {[%clk 0:01:47.5]} 49. Bxf5 {[%clk 0:00:08.5]} 49... Rxb3+ {[%clk
0:01:47.4]} 50. Kc2 {[%clk 0:00:08.7]} 50... Rxe3 {[%clk 0:01:48.2]} 0-1

[Event "*** Titled Tuesday 3|2 Blitz"]
[Site "Chess.com"]
[Date "2017.03.07"]
[Round "1"]
[White "AnthonyWirig"]
[Black "Hanging_pointer"]
[Result "1-0"]
[WhiteElo "2561"]
[BlackElo "2289"]
[TimeControl "180+2"]
[EndTime "13:08:45 PST"]
[Termination "AnthonyWirig won by resignation"]

1. d4 {[%clk 0:03:02]} 1... Nf6 {[%clk 0:03:00.8]} 2. Nf3 {[%clk 0:02:59.9]}
2... e6 {[%clk 0:03:02.1]} 3. c4 {[%clk 0:03:00.3]} 3... Bb4+ {[%clk 0:03:02.5]}
4. Bd2 {[%clk 0:02:59.5]} 4... Qe7 {[%clk 0:03:03.5]} 5. g3 {[%clk 0:02:57.7]}
5... Nc6 {[%clk 0:03:04.4]} 6. Bg2 {[%clk 0:02:57]} 6... Bxd2+ {[%clk
0:03:06.3]} 7. Nbxd2 {[%clk 0:02:57.5]} 7... O-O {[%clk 0:03:06.7]} 8. O-O
{[%clk 0:02:56.3]} 8... d6 {[%clk 0:03:07.8]} 9. e4 {[%clk 0:02:56.1]} 9... e5
{[%clk 0:03:09.3]} 10. d5 {[%clk 0:02:56.5]} 10... Nb8 {[%clk 0:03:10.6]} 11.
Ne1 {[%clk 0:02:56.8]} 11... a5 {[%clk 0:03:11.8]} 12. Nd3 {[%clk 0:02:57.8]}
12... Na6 {[%clk 0:03:13.7]} 13. a3 {[%clk 0:02:55.6]} 13... c6 {[%clk
0:03:13.8]} 14. b4 {[%clk 0:02:54.2]} 14... Bd7 {[%clk 0:03:03.8]} 15. Re1
{[%clk 0:02:45.9]} 15... cxd5 {[%clk 0:03:01.4]} 16. exd5 {[%clk 0:02:47]} 16...
Bf5 {[%clk 0:03:02.4]} 17. Ne4 {[%clk 0:02:36.6]} 17... Nxe4 {[%clk 0:03:00.9]}
18. Bxe4 {[%clk 0:02:38.5]} 18... Bxe4 {[%clk 0:03:02.1]} 19. Rxe4 {[%clk
0:02:40.1]} 19... f5 {[%clk 0:02:48]} 20. Re1 {[%clk 0:02:38.7]} 20... axb4
{[%clk 0:02:36.9]} 21. axb4 {[%clk 0:02:38.8]} 21... Qf6 {[%clk 0:02:26.6]} 22.
b5 {[%clk 0:01:53.5]} 22... Nc7 {[%clk 0:02:23.9]} 23. Rxa8 {[%clk 0:01:48.6]}
23... Rxa8 {[%clk 0:02:24.4]} 24. Qb3 {[%clk 0:01:45.7]} 24... b6 {[%clk
0:01:45.4]} 25. c5 {[%clk 0:01:08.7]} 25... bxc5 {[%clk 0:01:41.7]} 26. b6
{[%clk 0:01:09.9]} 26... Ne8 {[%clk 0:01:27.5]} 27. Qb5 {[%clk 0:00:53.9]} 27...
Qd8 {[%clk 0:01:14]} 28. Rb1 {[%clk 0:00:49.5]} 28... Rb8 {[%clk 0:01:12.7]} 29.
Qc6 {[%clk 0:00:42.7]} 29... h6 {[%clk 0:00:56.5]} 30. b7 {[%clk 0:00:41.8]}
30... Kf7 {[%clk 0:00:49]} 31. Rb6 {[%clk 0:00:36.9]} 31... Ke7 {[%clk
0:00:25.4]} 32. Nb2 {[%clk 0:00:34.5]} 32... Qc7 {[%clk 0:00:24.4]} 33. Qb5
{[%clk 0:00:24.4]} 33... Qd7 {[%clk 0:00:21.5]} 34. Qa6 {[%clk 0:00:16.1]} 34...
Qc7 {[%clk 0:00:08.1]} 35. Nc4 {[%clk 0:00:16.3]} 35... Kd7 {[%clk 0:00:09.2]}
36. Qb5+ {[%clk 0:00:16.1]} 36... Ke7 {[%clk 0:00:10.3]} 37. Na5 {[%clk
0:00:16.9]} 37... Qd7 {[%clk 0:00:10.4]} 38. Nc6+ {[%clk 0:00:17.7]} 1-0

[Event "*** Titled Tuesday 3|2 Blitz"]
[Site "Chess.com"]
[Date "2017.03.07"]
[Round "1"]
[White "Astaneh"]
[Black "Rock700chess"]
[Result "1-0"]
[WhiteElo "2533"]
[BlackElo "2241"]
[TimeControl "180+2"]
[EndTime "13:08:46 PST"]
[Termination "Astaneh won by resignation"]

1. d4 {[%clk 0:03:02]} 1... Nf6 {[%clk 0:02:59.5]} 2. c4 {[%clk 0:03:00.9]} 2...
g6 {[%clk 0:02:59]} 3. Nc3 {[%clk 0:03:01]} 3... Bg7 {[%clk 0:02:59.2]} 4. e4
{[%clk 0:03:00.9]} 4... d6 {[%clk 0:03:00.1]} 5. f3 {[%clk 0:03:00.8]} 5... O-O
{[%clk 0:03:00.2]} 6. Be3 {[%clk 0:03:01.7]} 6... e5 {[%clk 0:02:55.8]} 7. Nge2
{[%clk 0:02:58.2]} 7... Nc6 {[%clk 0:02:52.1]} 8. d5 {[%clk 0:02:58.2]} 8... Nb8
{[%clk 0:02:32.2]} 9. g4 {[%clk 0:02:37]} 9... a5 {[%clk 0:02:26.7]} 10. Rb1
{[%clk 0:02:14]} 10... Na6 {[%clk 0:02:23.2]} 11. a3 {[%clk 0:02:15.1]} 11...
Bd7 {[%clk 0:01:57.9]} 12. b4 {[%clk 0:02:15]} 12... axb4 {[%clk 0:00:56.2]} 13.
axb4 {[%clk 0:02:16]} 13... c5 {[%clk 0:00:56.3]} 14. dxc6 {[%clk 0:02:04.9]}
14... bxc6 {[%clk 0:00:39.8]} 15. Qxd6 {[%clk 0:02:04.6]} 15... Qc7 {[%clk
0:00:24.1]} 16. Qxc7 {[%clk 0:02:01.4]} 16... Nxc7 {[%clk 0:00:26]} 17. b5
{[%clk 0:01:32.3]} 17... cxb5 {[%clk 0:00:24.1]} 18. cxb5 {[%clk 0:01:33.1]}
18... Rab8 {[%clk 0:00:17.5]} 19. g5 {[%clk 0:01:08.2]} 19... Nh5 {[%clk
0:00:14.7]} 20. b6 {[%clk 0:01:09.5]} 20... Ne6 {[%clk 0:00:14]} 21. Nd5 {[%clk
0:01:10.4]} 21... Kh8 {[%clk 0:00:07.1]} 22. Kf2 {[%clk 0:01:08.3]} 22... Bc6
{[%clk 0:00:07.3]} 23. Bh3 {[%clk 0:00:56.6]} 23... Bxd5 {[%clk 0:00:08.1]} 24.
exd5 {[%clk 0:00:58.5]} 24... Nef4 {[%clk 0:00:09.3]} 25. Bxf4 {[%clk
0:00:48.9]} 25... Nxf4 {[%clk 0:00:11.2]} 26. Nxf4 {[%clk 0:00:44.5]} 26... exf4
{[%clk 0:00:13.1]} 27. Rhd1 {[%clk 0:00:45.8]} 27... Rfd8 {[%clk 0:00:09.4]} 28.
b7 {[%clk 0:00:40.6]} 28... Bf8 {[%clk 0:00:09.1]} 29. Rdc1 {[%clk 0:00:29.8]}
29... h6 {[%clk 0:00:04.3]} 30. Rc8 {[%clk 0:00:29.2]} 30... hxg5 {[%clk
0:00:04.3]} 31. Rxd8 {[%clk 0:00:30.2]} 31... Rxd8 {[%clk 0:00:02.6]} 32. b8=Q
{[%clk 0:00:31.8]} 32... Rxb8 {[%clk 0:00:04.5]} 33. Rxb8 {[%clk 0:00:32.9]}
33... Kg7 {[%clk 0:00:05.8]} 34. Rb7 {[%clk 0:00:25.4]} 34... Bc5+ {[%clk
0:00:06.7]} 35. Ke2 {[%clk 0:00:26]} 35... Bd6 {[%clk 0:00:08]} 36. Be6 {[%clk
0:00:26.5]} 36... Kh6 {[%clk 0:00:07.6]} 37. Rxf7 {[%clk 0:00:28.4]} 37... Bc5
{[%clk 0:00:07.8]} 38. Kd3 {[%clk 0:00:28.3]} 38... g4 {[%clk 0:00:06.6]} 39.
fxg4 {[%clk 0:00:26.8]} 39... Kg5 {[%clk 0:00:07.9]} 40. Ke4 {[%clk 0:00:27.4]}
40... Be3 {[%clk 0:00:08.5]} 41. d6 {[%clk 0:00:25.4]} 41... Kh4 {[%clk
0:00:08.1]} 42. Rh7+ {[%clk 0:00:24.1]} 1-0